bitfinex/quotes_BTCUSD_20250423
["timestamp","ask_amount","ask_price","bid_price","bid_amount"]
[1745386557596,0.01070984,93372.0,93361.0,0.0359]
[1745386558027,0.01070973,93373.0,93361.0,0.0359]
[1745386558224,0.00341947,93371.0,93361.0,0.0359]
[1745386558426,0.0141316,93372.0,93361.0,0.0359]
[1745386558634,0.00341717,93370.0,93361.0,0.0399]
[1745386558833,0.01412943,93371.0,93361.0,0.0399]
[1745386559047,0.00341488,93369.0,93361.0,0.0399]
[1745386559213,0.01412724,93370.0,93361.0,0.0399]
[1745386559427,0.00341259,93368.0,93361.0,0.004]
[1745386559631,0.00341488,93369.0,93361.0,0.004]
[1745386559837,0.00341029,93367.0,93361.0,0.004]
[1745386559994,0.00341259,93368.0,93361.0,0.007]
[1745386560193,0.01071019,93369.0,93361.0,0.003]
[1745386560463,0.00341259,93368.0,93361.0,0.003]
[1745386560686,0.00341259,93368.0,93361.0,0.01]
[1745386561696,0.00341259,93368.0,93361.0,0.006]
[1745386561948,0.0107103,93368.0,93361.0,0.01]
[1745386562144,0.00255714,93367.0,93361.0,0.01]
[1745386562413,0.01071053,93366.0,93361.0,0.01]
[1745386562643,0.01326756,93367.0,93361.0,0.01]
[1745386562855,0.00255256,93365.0,93361.0,0.01]
[1745386563069,0.00255485,93366.0,93361.0,0.01]
[1745386563285,0.00255026,93364.0,93361.0,0.01]
[1745386563476,0.00255256,93365.0,93357.0,0.01155284]
[1745386563693,0.00254797,93363.0,93361.0,0.004]
[1745386563844,0.00255026,93364.0,93361.0,0.004]
[1745386564068,0.00254567,93362.0,93361.0,0.004]
[1745386564270,0.0107103,93368.0,93361.0,0.007]
[1745386564428,0.00254567,93362.0,93357.0,0.01155284]
[1745386564627,0.0107103,93368.0,93357.0,0.01155284]
[1745386564831,0.01071042,93367.0,93361.0,0.003]
[1745386565058,0.02362995,93367.0,93361.0,0.007]
[1745386566554,0.01291953,93367.0,93361.0,0.003]
[1745386566763,0.01291953,93367.0,93361.0,0.004]
[1745386567006,0.22490753,93372.0,93361.0,0.007]
[1745386567227,0.01036161,93366.0,93361.0,0.007]
[1745386567439,0.0107103,93368.0,93361.0,0.007]
[1745386567826,0.0107103,93368.0,93361.0,0.003]
[1745386568249,0.21421303,93365.0,93361.0,0.007]
[1745386568489,0.21421762,93363.0,93361.0,0.007]
[1745386568691,0.2176439,93362.0,93361.0,0.007]
[1745386569142,0.2176439,93362.0,93361.0,0.004]
[1745386569595,0.2176439,93362.0,93361.0,0.003]
[1745386569813,0.01054085,93359.0,93357.0,0.00013978]
[1745386570014,0.10830305,93358.0,93357.0,0.00013978]
[1745386570412,0.11083954,93358.0,93357.0,0.00013978]
[1745386571229,0.53082464,93358.0,93357.0,0.00013978]
[1745386571475,0.53382464,93358.0,93357.0,0.00013978]
[1745386571917,0.54836549,93358.0,93357.0,0.00013978]
[1745386572496,0.54336549,93358.0,93357.0,0.00013978]
[1745386572702,0.59216549,93358.0,93357.0,0.00013978]
[1745386572927,0.59616549,93358.0,93357.0,0.00013978]
[1745386573319,0.59216549,93358.0,93357.0,0.00013978]
[1745386573793,0.59816549,93358.0,93357.0,0.00113978]
[1745386577510,0.59116549,93358.0,93357.0,0.00113978]
[1745386577726,0.93116549,93358.0,93357.0,0.00113978]
[1745386579571,0.59116549,93358.0,93357.0,0.00113978]
[1745386580002,0.70340549,93358.0,93357.0,0.00113978]
[1745386580846,0.66681896,93358.0,93357.0,0.00113978]
[1745386581298,0.01071294,93345.0,93330.0,0.27986155]
[1745386581505,0.01071294,93345.0,93331.0,0.01071455]
[1745386581709,0.01240694,93344.0,93331.0,0.01071455]
[1745386581918,0.02312,93344.0,93331.0,0.01071455]
[1745386582135,0.11224,93343.0,93332.0,0.01071443]
[1745386582345,0.11224,93343.0,93331.0,0.01071455]
[1745386582572,0.01071317,93343.0,93330.0,0.06556857]
[1745386582777,0.11224,93342.0,93331.0,0.003]
[1745386582986,0.11224,93342.0,93330.0,0.06856857]
[1745386583183,0.11224,93342.0,93330.0,0.01071466]
[1745386583386,0.11224,93342.0,93332.0,0.003]
[1745386583985,0.11224,93341.0,93332.0,0.003]
[1745386584209,0.11224,93341.0,93331.0,0.003]
[1745386584425,0.08579272,93335.0,93331.0,0.006]
[1745386584625,0.21428734,93333.0,93331.0,0.003]
[1745386584852,0.32259039,93333.0,93331.0,0.003]
[1745386585065,0.31559039,93333.0,93331.0,0.003]
[1745386585291,0.00247682,93332.0,93331.0,0.003]
[1745386585799,0.01071501,93327.0,93323.0,0.0004249]
[1745386586065,0.00771501,93327.0,93323.0,0.0004249]
[1745386586273,0.00246304,93326.0,93323.0,0.0004249]
[1745386586696,0.00221074,93326.0,93323.0,0.0004249]
[1745386587109,0.00221074,93326.0,93324.0,0.00093519]
[1745386587308,0.00221074,93326.0,93324.0,0.00293519]
[1745386587915,0.21430484,93325.0,93324.0,0.00293519]
[1745386588063,0.21430484,93325.0,93324.0,0.00493519]
[1745386588463,0.21651558,93325.0,93324.0,0.00493519]
[1745386588901,0.00221074,93325.0,93324.0,0.00393519]
[1745386589083,0.00221074,93325.0,93324.0,0.00293519]
[1745386589315,0.21430484,93325.0,93324.0,0.00293519]
[1745386589537,0.21651558,93325.0,93324.0,0.00393519]
[1745386589951,0.32879558,93325.0,93324.0,0.00393519]
[1745386590155,0.32879558,93325.0,93324.0,0.00293519]
[1745386590571,0.32979558,93325.0,93324.0,0.00293519]
[1745386590786,0.32979558,93325.0,93324.0,0.00093519]
[1745386591214,0.32979558,93325.0,93324.0,0.00193519]
[1745386592761,0.32279558,93325.0,93324.0,0.00193519]
[1745386595846,0.33257272,93325.0,93324.0,0.00193519]
[1745386597667,0.01298788,93325.0,93324.0,0.00193519]
[1745386600609,0.00598788,93325.0,93324.0,0.00193519]
[1745386600814,0.11208,93328.0,93324.0,0.00193519]
[1745386601020,0.01098789,93325.0,93324.0,0.00193519]
[1745386601227,0.00165806,93325.0,93324.0,0.00193519]
[1745386601676,0.11208,93328.0,93324.0,0.00193519]
[1745386601905,0.01098789,93325.0,93324.0,0.00093519]
[1745386602124,0.11208,93328.0,93324.0,0.00093519]
[1745386602326,0.01098789,93325.0,93324.0,0.00093519]
[1745386602536,0.001425,93429.0,93326.0,0.01071512]
[1745386602537,0.0456,93337.0,93326.0,0.01071512]
[1745386602764,0.00932983,93325.0,93324.0,0.00193519]
[1745386602967,0.11208,93333.0,93324.0,0.01265054]
[1745386603186,0.11208,93333.0,93324.0,0.00193519]
[1745386603836,0.11208,93333.0,93324.0,0.00093519]
[1745386604257,0.11208,93333.0,93324.0,0.00193519]
[1745386604377,0.00932476,93332.0,93324.0,0.00193519]
[1745386604586,0.00932476,93332.0,93324.0,0.00293519]
[1745386604805,0.00932476,93332.0,93314.0,0.22589667]
[1745386605019,0.02003919,93332.0,93319.0,0.10830305]
[1745386605665,0.02003919,93332.0,93319.0,0.11901898]
[1745386606390,0.02003919,93332.0,93324.0,0.001]
[1745386606590,0.02003919,93332.0,93319.0,0.11901898]
[1745386606798,0.02003919,93332.0,93324.0,0.001]
[1745386607487,0.02003919,93332.0,93319.0,0.12101898]
[1745386607687,0.02003919,93332.0,93319.0,0.11030305]
[1745386607928,0.02003919,93332.0,93319.0,0.11230305]
[1745386608548,0.01071478,93329.0,93319.0,0.11230305]
[1745386608782,0.01071478,93329.0,93319.0,0.11030305]
[1745386608990,0.01071466,93330.0,93319.0,0.11030305]
[1745386609197,0.01105355,93328.0,93319.0,0.11030305]
[1745386609509,0.01105355,93328.0,93319.0,0.10930305]
[1745386609728,0.01105355,93328.0,93319.0,0.11030305]
[1745386610143,0.01105355,93328.0,93319.0,0.11130305]
[1745386610338,0.01105355,93328.0,93319.0,0.10930305]
[1745386610569,0.01105355,93328.0,93319.0,0.11230305]
[1745386611461,0.01105355,93328.0,93319.0,0.11030305]
[1745386612090,0.01105355,93328.0,93319.0,0.10830305]
[1745386612621,0.01105355,93328.0,93319.0,0.11030305]
[1745386612838,0.01105355,93328.0,93319.0,0.11230305]
[1745386613582,0.01071501,93327.0,93319.0,0.11230305]
[1745386613790,0.01071558,93322.0,93319.0,0.004]
[1745386613999,0.21431633,93320.0,93319.0,0.004]
[1745386614492,0.25991633,93320.0,93319.0,0.002]
[1745386614697,0.30791633,93320.0,93319.0,0.002]
[1745386615769,0.31863214,93320.0,93319.0,0.002]
[1745386615985,0.31163214,93320.0,93319.0,0.002]
[1745386616403,0.21432692,93316.0,93314.0,0.0008502]
[1745386616602,0.21432692,93316.0,93314.0,0.00092014]
[1745386617489,0.00163509,93315.0,93314.0,0.00092014]
[1745386618015,0.12279616,93317.0,93314.0,0.00092014]
[1745386618170,0.00163509,93315.0,93314.0,0.00092014]
[1745386618653,0.33712161,93317.0,93314.0,0.00092014]
[1745386618869,0.00163739,93316.0,93314.0,0.00092014]
[1745386620005,0.00163739,93316.0,93315.0,0.00751261]
[1745386623663,0.00122804,93316.0,93315.0,0.00751261]
[1745386626249,0.01069026,93316.0,93315.0,0.00751261]
[1745386631194,0.22501577,93316.0,93315.0,0.00751261]
[1745386631403,0.00369026,93316.0,93315.0,0.00751261]
[1745386631619,0.00092103,93316.0,93315.0,0.00751261]
[1745386631835,0.00952359,93316.0,93315.0,0.00751261]
[1745386632262,0.00952359,93316.0,93303.0,0.10706918]
[1745386632583,0.00952359,93316.0,93304.0,0.01071765]
[1745386632953,0.00952359,93316.0,93304.0,0.02481154]
[1745386633157,0.00952359,93316.0,93304.0,0.01071765]
[1745386634280,0.00952359,93316.0,93304.0,0.01371765]
[1745386634639,0.01071639,93315.0,93304.0,0.01715114]
[1745386634840,0.00953842,93314.0,93304.0,0.01715114]
[1745386635062,0.0497,93313.0,93304.0,0.02015114]
[1745386635450,0.0497,93313.0,93304.0,0.02786879]
[1745386635662,0.04732871,93313.0,93304.0,0.01715114]
[1745386636097,0.04732871,93313.0,93304.0,0.02015114]
[1745386636313,0.04732871,93313.0,93304.0,0.01715114]
[1745386636517,0.04732871,93313.0,93304.0,0.01415114]
[1745386636681,0.04732871,93313.0,93304.0,0.02015114]
[1745386636914,0.04732871,93313.0,93304.0,0.006]
[1745386637783,0.04732871,93313.0,93304.0,0.02000874]
[1745386638461,0.00091184,93312.0,93304.0,0.02000874]
[1745386638652,0.04732871,93313.0,93304.0,0.02000874]
[1745386638991,0.00845073,93312.0,93305.0,0.00751593]
[1745386639191,0.00728406,93312.0,93305.0,0.00751593]
[1745386639679,0.00728406,93312.0,93306.0,0.00751593]
[1745386640420,0.00728406,93312.0,93307.0,0.00751593]
[1745386641103,0.00728406,93312.0,93308.0,0.00751593]
[1745386641689,0.00728406,93312.0,93309.0,0.00751593]
[1745386642110,0.00090955,93311.0,93309.0,0.00751593]
[1745386642550,0.00090955,93311.0,93310.0,0.00751593]
[1745386643163,0.01071639,93315.0,93310.0,0.00751593]
[1745386643688,0.0059046,93314.0,93310.0,0.00751593]
[1745386643903,0.0059046,93314.0,93311.0,0.00751593]
[1745386644786,0.0059046,93314.0,93312.0,0.00751593]
[1745386645576,0.0059046,93314.0,93313.0,0.00751593]
[1745386646738,0.00962099,93315.0,93313.0,0.00751593]
[1745386646954,0.00354717,93314.0,93313.0,0.00751593]
[1745386647159,0.00354717,93314.0,93313.0,0.00851593]
[1745386647666,0.00354717,93314.0,93313.0,0.00951593]
[1745386647907,0.01071627,93316.0,93313.0,0.00951593]
[1745386648118,0.00354042,93314.0,93313.0,0.00951593]
[1745386648314,0.01071627,93316.0,93313.0,0.00951593]
[1745386648542,0.00354042,93314.0,93313.0,0.002]
[1745386648723,0.01071627,93316.0,93313.0,0.002]
[1745386648860,0.00354042,93314.0,93313.0,0.001]
[1745386649060,0.01071627,93316.0,93313.0,0.002]
[1745386649286,0.0035412,93315.0,93313.0,0.002]
[1745386649960,0.0035412,93315.0,93313.0,0.001]
[1745386650209,0.0035412,93315.0,93314.0,0.00752567]
[1745386651276,0.01071616,93317.0,93314.0,0.00752567]
[1745386651477,0.0035412,93315.0,93314.0,0.00852567]
[1745386651653,0.01071616,93317.0,93314.0,0.00852567]
[1745386652076,0.00354198,93316.0,93314.0,0.00852567]
[1745386652835,0.00354198,93316.0,93315.0,0.00752567]
[1745386653596,0.21786749,93316.0,93315.0,0.00752567]
[1745386654198,0.00354198,93316.0,93315.0,0.00752567]
[1745386654403,0.22157928,93318.0,93315.0,0.00752567]
[1745386655062,0.22157928,93318.0,93316.0,0.00752567]
[1745386655963,0.22157928,93318.0,93317.0,0.00752567]
[1745386659865,0.00725802,93318.0,93317.0,0.00752567]
[1745386661144,0.0456,93320.0,93317.0,0.00752567]
[1745386661364,0.0489,93326.0,93318.0,0.00214298]
[1745386661570,0.0489,93326.0,93318.0,0.00752567]
[1745386661776,0.0107157,93321.0,93318.0,0.00752567]
[1745386661983,0.22502897,93322.0,93318.0,0.00752567]
[1745386662194,0.086,93320.0,93319.0,0.00752567]
[1745386663844,0.086,93320.0,93319.0,0.00952567]
[1745386666072,0.2088439,93320.0,93319.0,0.00952567]
[1745386666202,0.5488439,93320.0,93319.0,0.002]
[1745386669920,0.5418439,93320.0,93319.0,0.002]
[1745386670962,0.913329,93320.0,93319.0,0.002]
[1745386674492,0.57966226,93320.0,93319.0,0.002]
[1745386674720,0.69138226,93320.0,93319.0,0.002]
[1745386677688,0.68438226,93320.0,93319.0,0.002]
[1745386677894,0.22507228,93304.0,93290.0,0.19824121]
[1745386678093,0.01212809,93303.0,93290.0,0.19828779]
[1745386678458,0.01071788,93302.0,93290.0,0.19828779]
[1745386678659,0.00140573,93301.0,93290.0,0.19828779]
[1745386679093,0.00140573,93301.0,93290.0,0.20828779]
[1745386679300,0.00140573,93301.0,93290.0,0.22700705]
[1745386679532,0.00140573,93301.0,93290.0,0.20900705]
[1745386679906,0.00340573,93301.0,93290.0,0.22700705]
[1745386680053,0.00340573,93301.0,93290.0,0.21628779]
[1745386680266,0.00340573,93301.0,93290.0,0.22700705]
[1745386680487,0.00340573,93301.0,93291.0,0.01071914]
[1745386680703,0.00340573,93301.0,93291.0,0.02381432]
[1745386681429,0.001,93301.0,93291.0,0.02381432]
[1745386681573,0.001,93301.0,93291.0,0.01309518]
[1745386681789,0.001,93301.0,93291.0,0.009]
[1745386682187,0.002,93301.0,93291.0,0.02671914]
[1745386683231,0.002,93301.0,93291.0,0.016]
[1745386683639,0.002,93301.0,93291.0,0.02671914]
[1745386683858,0.002,93301.0,93291.0,0.016]
[1745386684235,0.002,93301.0,93290.0,0.01071926]
[1745386684789,0.002,93301.0,93289.0,0.01071937]
[1745386684991,0.002,93301.0,93289.0,0.11916261]
[1745386685194,0.001,93301.0,93289.0,0.11916261]
[1745386685322,0.00471788,93302.0,93289.0,0.11916261]
[1745386685519,0.001,93301.0,93290.0,0.01]
[1745386685784,0.002,93301.0,93290.0,0.018]
[1745386685953,0.00471788,93302.0,93289.0,0.11916261]
[1745386686168,0.00471788,93302.0,93289.0,0.12916261]
[1745386686364,0.002,93301.0,93289.0,0.13716261]
[1745386686601,0.001,93301.0,93289.0,0.12916261]
[1745386686904,0.001,93301.0,93290.0,0.008]
[1745386687126,0.002,93301.0,93290.0,0.008]
[1745386687357,0.002,93301.0,93290.0,0.13012911]
[1745386687566,0.002,93301.0,93290.0,0.14322895]
[1745386687765,0.002,93301.0,93290.0,0.15394821]
[1745386687766,0.001,93301.0,93290.0,0.15394821]
[1745386687945,0.001,93301.0,93290.0,0.14322895]
[1745386688345,0.001,93301.0,93290.0,0.15394821]
[1745386688555,0.002,93301.0,93291.0,0.01071914]
[1745386688871,0.001,93301.0,93291.0,0.01071914]
[1745386689315,0.003,93301.0,93299.0,0.21436255]
[1745386689554,0.001,93301.0,93297.0,0.01071845]
[1745386689789,0.11172,93309.0,93299.0,0.01071822]
[1745386690013,0.001,93301.0,93300.0,0.00214338]
[1745386690233,0.11771326,93309.0,93300.0,0.01286149]
[1745386690449,0.11172,93309.0,93300.0,0.01286149]
[1745386690676,0.11771326,93309.0,93300.0,0.01286149]
[1745386690997,0.001,93301.0,93300.0,0.01286149]
[1745386691217,0.001,93301.0,93300.0,0.00214338]
[1745386691421,0.001,93301.0,93299.0,0.004]
[1745386691627,0.01071673,93312.0,93299.0,0.01471822]
[1745386691831,0.001,93309.0,93300.0,0.004]
[1745386692284,0.01673932,93311.0,93298.0,0.01071834]
[1745386692481,0.00602247,93311.0,93299.0,0.01071822]
[1745386692713,0.001,93301.0,93299.0,0.008]
[1745386692917,0.001,93301.0,93299.0,0.004]
[1745386693127,0.00471673,93312.0,93299.0,0.01471822]
[1745386693308,0.00602247,93311.0,93300.0,0.004]
[1745386693514,0.00602247,93311.0,93299.0,0.01471822]
[1745386693962,0.00471673,93312.0,93299.0,0.01471822]
[1745386694505,0.00471673,93312.0,93299.0,0.01071822]
[1745386695012,0.001,93311.0,93299.0,0.01471822]
[1745386695208,0.001,93311.0,93299.0,0.01071822]
[1745386695418,0.00471673,93312.0,93299.0,0.01071822]
[1745386695632,0.00571673,93312.0,93299.0,0.01871822]
[1745386695770,0.00571673,93312.0,93299.0,0.008]
[1745386695975,0.00471673,93312.0,93298.0,0.01071834]
[1745386696411,0.001,93311.0,93299.0,0.004]
[1745386696650,0.001,93311.0,93299.0,0.01871822]
[1745386696987,0.001,93311.0,93299.0,0.008]
[1745386697532,0.01071673,93312.0,93299.0,0.004]
[1745386697953,0.01171673,93312.0,93298.0,0.01471834]
[1745386698192,0.01171673,93312.0,93298.0,0.01771834]
[1745386698402,0.01071673,93312.0,93298.0,0.01071834]
[1745386698607,0.01171673,93312.0,93299.0,0.003]
[1745386698818,0.01171673,93312.0,93299.0,0.006]
[1745386699027,0.01071673,93312.0,93298.0,0.01071834]
[1745386699497,0.01171673,93312.0,93298.0,0.01671834]
[1745386699711,0.001,93312.0,93299.0,0.01071822]
[1745386699913,0.01171673,93312.0,93298.0,0.01471834]
[1745386700328,0.01171673,93312.0,93298.0,0.004]
[1745386700525,0.01171673,93312.0,93298.0,0.01471834]
[1745386700773,0.01071673,93312.0,93298.0,0.01471834]
[1745386700975,0.01071673,93312.0,93298.0,0.004]
[1745386700976,0.01071696,93310.0,93298.0,0.004]
[1745386701185,0.05721685,93311.0,93299.0,0.003]
[1745386701806,0.05721685,93311.0,93297.0,0.01071845]
[1745386702024,0.05721685,93311.0,93299.0,0.003]
[1745386702450,0.01071696,93310.0,93296.0,0.01071857]
[1745386702690,0.05721685,93311.0,93299.0,0.003]
[1745386702883,0.05821685,93311.0,93299.0,0.003]
[1745386703308,0.0475,93311.0,93299.0,0.006]
[1745386703761,0.0465,93311.0,93299.0,0.003]
[1745386704472,0.05721685,93311.0,93299.0,0.003]
[1745386705094,0.001,93310.0,93299.0,0.003]
[1745386705523,0.0475,93309.0,93299.0,0.003]
[1745386705808,0.0475,93309.0,93299.0,0.007]
[1745386705953,0.05821707,93309.0,93299.0,0.004]
[1745386706463,0.01071719,93308.0,93299.0,0.003]
[1745386706670,0.01071719,93308.0,93299.0,0.007]
[1745386706894,0.21436227,93300.0,93299.0,0.007]
[1745386707117,0.31106227,93300.0,93299.0,0.007]
[1745386707730,0.31106227,93300.0,93299.0,0.004]
[1745386708143,0.21438295,93291.0,93290.0,0.01309984]
[1745386708288,0.26038295,93291.0,93290.0,0.01309984]
[1745386708478,0.24638295,93291.0,93289.0,0.00014019]
[1745386708887,0.24538295,93291.0,93289.0,0.01703761]
[1745386709134,0.24438295,93291.0,93289.0,0.00014019]
[1745386709351,0.24438295,93291.0,93289.0,0.01717071]
[1745386709529,0.24538295,93291.0,93289.0,0.01717071]
[1745386709715,0.24538295,93291.0,93289.0,0.00014019]
[1745386710039,0.24638295,93291.0,93289.0,0.01710582]
[1745386710437,0.0483,93290.0,93289.0,0.01710582]
[1745386711621,0.0513,93290.0,93289.0,0.01810582]
[1745386711832,0.1037,93290.0,93289.0,0.00214019]
[1745386714471,0.006,93290.0,93289.0,0.00214019]
[1745386715313,0.01071811,93300.0,93289.0,0.00214019]
[1745386715525,0.01071811,93300.0,93290.0,0.13012911]
[1745386716346,0.0497,93302.0,93290.0,0.13012911]
[1745386716548,0.01071799,93301.0,93290.0,0.13012911]
[1745386716979,0.0497,93302.0,93290.0,0.13012911]
[1745386717156,0.06041788,93302.0,93290.0,0.13012911]
[1745386717381,0.0497,93302.0,93290.0,0.1982915]
[1745386717602,0.003,93300.0,93290.0,0.20901076]
[1745386717811,0.003,93300.0,93290.0,0.1982915]
[1745386718011,0.002,93300.0,93290.0,0.1982915]
[1745386718213,0.002,93300.0,93290.0,0.1992915]
[1745386718878,0.046,93303.0,93295.0,0.01071868]
[1745386719087,0.004,93300.0,93294.0,0.0107188]
[1745386719273,0.004,93300.0,93293.0,0.01071891]
[1745386719731,0.004,93300.0,93294.0,0.01286233]
[1745386719936,0.004,93300.0,93297.0,0.01071845]
[1745386720143,0.004,93300.0,93294.0,0.0107188]
[1745386720355,0.001,93300.0,93294.0,0.01286233]
[1745386720579,0.05,93303.0,93295.0,0.001]
[1745386721051,0.049,93303.0,93294.0,0.01286233]
[1745386721257,0.046,93303.0,93294.0,0.0107188]
[1745386721488,0.007,93300.0,93294.0,0.0117188]
[1745386721701,0.007,93300.0,93294.0,0.001]
[1745386721912,0.046,93303.0,93294.0,0.0107188]
[1745386722115,0.053,93303.0,93295.0,0.001]
[1745386723433,0.049,93303.0,93294.0,0.0107188]
[1745386723575,0.004,93300.0,93294.0,0.0117188]
[1745386723926,0.046,93303.0,93300.0,0.01071811]
[1745386724168,0.003,93303.0,93301.0,0.21435997]
[1745386724380,0.007,93303.0,93302.0,0.00214335]
[1745386725007,0.0458,93316.0,93305.0,0.01071753]
[1745386725187,0.0458,93316.0,93304.0,0.01071765]
[1745386725630,0.12203604,93318.0,93304.0,0.01071765]
[1745386725631,0.11132,93318.0,93314.0,0.21432953]
[1745386725856,0.0458,93322.0,93315.0,0.01071639]
[1745386726476,0.0458,93322.0,93316.0,0.01071627]
[1745386726685,0.0458,93322.0,93314.0,0.0107165]
[1745386727090,0.0458,93322.0,93311.0,0.35071685]
[1745386727298,0.0458,93322.0,93314.0,0.01673978]
[1745386727501,0.0488,93322.0,93312.0,0.01071673]
[1745386727709,0.00602139,93321.0,93312.0,0.01071673]
[1745386727891,0.00602139,93321.0,93313.0,0.01071662]
[1745386728023,0.002,93316.0,93313.0,0.01071662]
[1745386728868,0.0458,93322.0,93313.0,0.01071662]
[1745386729070,0.00602139,93321.0,93313.0,0.01071662]
[1745386729268,0.002,93316.0,93312.0,0.01071673]
[1745386730661,0.003,93316.0,93312.0,0.0276179]
[1745386730891,0.003,93316.0,93312.0,0.01690117]
[1745386731088,0.003,93316.0,93313.0,0.01071662]
[1745386731317,0.001,93316.0,93313.0,0.01071662]
[1745386731618,0.001,93316.0,93307.0,0.34]
[1745386731832,0.0478,93315.0,93307.0,0.34]
[1745386732249,0.05851719,93308.0,93289.0,0.22524513]
[1745386732484,0.05851719,93308.0,93293.0,0.01071891]
[1745386732706,0.0478,93308.0,93298.0,0.1982915]
[1745386732910,0.0478,93308.0,93300.0,0.01071811]
[1745386733124,0.0478,93308.0,93303.0,0.01071776]
[1745386733332,0.0478,93308.0,93302.0,0.01071788]
[1745386733982,0.0478,93308.0,93303.0,0.01071776]
[1745386735182,0.0478,93308.0,93303.0,0.01171776]
[1745386735394,0.0478,93308.0,93303.0,0.001]
[1745386736626,0.0478,93308.0,93303.0,0.002]
[1745386737001,0.00606223,93307.0,93303.0,0.002]
[1745386737861,0.0478,93308.0,93303.0,0.001]
[1745386738479,0.0478,93308.0,93303.0,0.01171776]
[1745386738685,0.0471,93310.0,93307.0,0.22506349]
[1745386738892,0.0471,93310.0,93306.0,0.01071742]
[1745386739340,0.001,93308.0,93306.0,0.01071742]
[1745386739965,0.0411,93310.0,93307.0,0.0107173]
[1745386740381,0.0411,93310.0,93306.0,0.01071742]
[1745386740586,0.0411,93310.0,93303.0,0.01071776]
[1745386740801,0.0411,93310.0,93304.0,0.01071765]
[1745386741030,0.0481,93309.0,93302.0,0.34]
[1745386741477,0.0491,93300.0,93286.0,0.01071972]
[1745386741695,0.0491,93300.0,93288.0,0.01071949]
[1745386741910,0.0491,93300.0,93289.0,0.02730817]
[1745386742123,0.0491,93300.0,93289.0,0.0165888]
[1745386742339,0.0491,93300.0,93289.0,0.02730817]
[1745386742810,0.0491,93300.0,93289.0,0.0195888]
[1745386743041,0.049,93299.0,93289.0,0.37430817]
[1745386743288,0.05503246,93299.0,93293.0,0.35071891]
[1745386743497,0.049,93299.0,93295.0,0.01071868]
[1745386743711,0.049,93299.0,93296.0,0.22509003]
[1745386744181,0.32564843,93315.0,93302.0,0.01071788]
[1745386744182,0.0492,93307.0,93302.0,0.01071788]
[1745386744320,0.0492,93307.0,93297.0,0.20900995]
[1745386744527,0.0492,93307.0,93300.0,0.35071811]
[1745386744750,0.0492,93307.0,93300.0,0.34]
[1745386745597,0.0492,93307.0,93300.0,0.001]
[1745386745771,0.0492,93307.0,93300.0,0.003]
[1745386746580,0.0492,93307.0,93303.0,0.01071776]
[1745386746978,0.0492,93307.0,93302.0,0.34]
[1745386747549,0.0422,93307.0,93298.0,0.34]
[1745386747778,0.0422,93307.0,93303.0,0.001]
[1745386748354,0.0422,93307.0,93298.0,0.34]
[1745386748570,0.0422,93307.0,93299.0,0.01071822]
[1745386748782,0.0422,93307.0,93296.0,0.35071857]
[1745386748961,0.0422,93307.0,93298.0,0.01271834]
[1745386749112,0.0422,93307.0,93298.0,0.002]
[1745386749322,0.0422,93307.0,93298.0,0.01271834]
[1745386749526,0.0422,93307.0,93298.0,0.01071834]
[1745386750087,0.0422,93307.0,93288.0,0.2143892]
[1745386750288,0.0422,93307.0,93296.0,0.22508982]
[1745386750500,0.0422,93307.0,93298.0,0.01071834]
[1745386750932,0.0422,93307.0,93299.0,0.01271822]
[1745386751604,0.0422,93307.0,93299.0,0.01071822]
[1745386752175,0.0422,93307.0,93299.0,0.01171822]
[1745386752607,0.0422,93307.0,93299.0,0.01371822]
[1745386752827,0.0422,93307.0,93299.0,0.003]
[1745386753187,0.0422,93307.0,93299.0,0.01371822]
[1745386753556,0.0422,93307.0,93299.0,0.003]
[1745386753765,0.0422,93307.0,93299.0,0.01371822]
[1745386753967,0.0422,93307.0,93299.0,0.003]
[1745386754687,0.0422,93307.0,93304.0,0.01071765]
[1745386755339,0.0352,93307.0,93304.0,0.01071765]
[1745386755807,0.0352,93307.0,93304.0,0.01171765]
[1745386757180,0.0352,93307.0,93304.0,0.001]
[1745386757584,0.0352,93307.0,93304.0,0.01171765]
[1745386758240,0.0479,93309.0,93308.0,0.21434389]
[1745386758449,0.0479,93309.0,93306.0,0.01071742]
[1745386758652,0.0479,93309.0,93306.0,0.22506366]
[1745386758851,0.00599244,93308.0,93306.0,0.22506366]
[1745386759099,0.00142182,93308.0,93306.0,0.22506366]
[1745386760982,0.00242182,93308.0,93306.0,0.22506366]
[1745386761195,0.00242182,93308.0,93306.0,0.01071742]
[1745386761410,0.0453,93306.0,93304.0,0.34]
[1745386762424,0.0453,93306.0,93298.0,0.1982915]
[1745386762641,0.0453,93306.0,93298.0,0.20900984]
[1745386762853,0.0453,93306.0,93298.0,0.1982915]
[1745386763114,0.21436407,93300.0,93280.0,0.21440732]
[1745386763312,0.01071799,93301.0,93284.0,0.42421995]
[1745386763535,0.01071834,93298.0,93284.0,0.42421995]
[1745386763797,0.00971822,93299.0,93285.0,0.01071983]
[1745386764006,0.00602349,93297.0,93288.0,0.1982915]
[1745386764402,0.00602349,93297.0,93289.0,0.0215888]
[1745386765112,0.0464,93296.0,93289.0,0.0165888]
[1745386765331,0.0464,93296.0,93289.0,0.0215888]
[1745386766689,0.0464,93296.0,93289.0,0.0165888]
[1745386766919,0.0464,93296.0,93289.0,0.0245888]
[1745386766920,0.00139195,93295.0,93289.0,0.0245888]
[1745386767327,0.00139195,93295.0,93289.0,0.0215888]
[1745386767552,0.01211063,93295.0,93289.0,0.0245888]
[1745386767757,0.01211063,93295.0,93289.0,0.0195888]
[1745386767758,0.01071903,93292.0,93289.0,0.0195888]
[1745386767963,0.04918276,93291.0,93289.0,0.00014019]
[1745386768174,0.0478,93291.0,93289.0,0.02381454]
[1745386768368,0.0478,93291.0,93289.0,0.00814019]
[1745386769758,0.0478,93291.0,93289.0,0.00014019]
[1745386769959,0.0478,93291.0,93289.0,0.00314019]
[1745386770155,0.0478,93291.0,93289.0,0.00514019]
[1745386770525,0.0478,93291.0,93289.0,0.00314019]
[1745386770727,0.0408,93291.0,93289.0,0.00814019]
[1745386770933,0.0418,93291.0,93289.0,0.00814019]
[1745386772316,0.25618413,93291.0,93289.0,0.00814019]
[1745386773353,0.25618341,93291.0,93289.0,0.00814019]
[1745386776712,0.0418,93291.0,93289.0,0.00814019]